Cogmind - Beta 14 @@@ ROGUE MODE // 2024.10.31 @ 13:59:53 Player: Xellophane Result: Destroyed by Y-45 Defender with Beam Rifle Performance ------------- Evolutions (1) 500 Regions Visited (4) 800 Robots Destroyed (80) 400 Value Destroyed (1756) 1756 Prototype IDs (2) 40 Alien Tech Used (0) 0 Bonus (22) 22 TOTAL SCORE: 3518 Bonus ------- High Alert Combat Kills 22 Cogmind --------- Core Integrity 0/400 Matter 232/300 Energy 10/100 System Corruption 2% Temperature Cool (9) Movement Flying (384) Ox5 Location -9/Storage Parts ------- > --- POWER (1) -------- (None) > --- PROPULSION (3) --- Improved Flight Unit Improved Flight Unit Improved Flight Unit > --- UTILITY (3) ------ Improved Heat Sink Huge Storage Unit ECM Suite > --- WEAPON (2) ------- Medium Laser > --- INVENTORY (25) --- Light Treads Light Treads Hover Unit Hover Unit Flight Unit Flight Unit Improved Flight Unit Heat Sink Heat Sink Improved Heat Sink Improved Heat Sink Medium Storage Unit Improved Terrain Scanner Beamcaster Peak State ------------ > --- POWER ------------ Light Nuclear Core > --- PROPULSION ------- Improved Flight Unit Improved Flight Unit Improved Flight Unit > --- UTILITY ---------- Improved Heat Sink Huge Storage Unit ECM Suite > --- WEAPON ----------- Beamcaster Particle Cannon > --- INVENTORY -------- Light Treads Light Treads Hover Unit Hover Unit Flight Unit Flight Unit Improved Flight Unit Heat Sink Heat Sink Improved Heat Sink Medium Storage Unit Improved Terrain Scanner Medium Laser Beamcaster [Rating: 26] Favorites ----------- Power Light Ion Engine Engine Light Ion Engine Power Core Light Nuclear Core Propulsion Light Treads Treads Light Treads Flight Unit Improved Flight Unit Utility Huge Storage Unit Device Improved Terrain Scanner Storage Huge Storage Unit Hackware Hacking Suite Protection Light Armor Plating Weapon Light Assault Rifle Energy Gun Medium Laser Energy Cannon Particle Cannon Ballistic Gun Light Assault Rifle Launcher Grenade Launcher Special Weapon Mining Laser Build | -11 -10 -10 -9 -9 ------- Run | Yrd Mat Min Mat Sto Slots Evolved 2 | . . . 2 . Power . | . . . . . Propulsion 1 | . . . 1 . Utility 1 | . . . 1 . Weapon . | . . . . . Parts Attached 58 | 7 5 8 26 12 Power 9 | 1 . 1 5 2 Engine 8 | 1 . 1 5 1 Core 1 | . . . . 1 Reactor . | . . . . . Propulsion 17 | 2 . 3 8 4 Treads 14 | 2 . 3 8 1 Leg . | . . . . . Wheel . | . . . . . Hover . | . . . . . Flight 3 | . . . . 3 Utility 10 | 2 3 . 3 2 Device 5 | 1 1 . 1 2 Storage 3 | 1 2 . . . Processor . | . . . . . Hackware 1 | . . . 1 . Protection 1 | . . . 1 . Artifact . | . . . . . Weapon 22 | 2 2 4 10 4 Energy Gun 3 | 1 . . . 2 Energy Cannon 1 | . . . . 1 Ballistic Gun 12 | 1 1 2 7 1 Ballistic Cannon . | . . . . . Launcher 4 | . 1 . 3 . Special Weapon 2 | . . 2 . . Impact Weapon . | . . . . . Slashing Weapon . | . . . . . Piercing Weapon . | . . . . . Special Melee Weapon . | . . . . . Unidentified Prototypes . | . . . . . Parts Lost 27 | . 1 1 19 6 Power 7 | . . . 5 2 Propulsion 7 | . . 1 6 . Utility 4 | . 1 . 2 1 Weapon 9 | . . . 6 3 Highest Loss Streak 7 | . 1 1 7 2 To Critical Strikes . | . . . . . Average Slot Usage (%) 96 | . 99 99 95 84 Engine 11 | . 14 14 10 4 Treads 26 | . 28 27 31 4 Flight 2 | . . . . 22 Device 15 | . 13 14 15 18 Storage 12 | . 14 14 11 11 Hackware 1 | . . . 3 3 Energy Gun 1 | . 2 . . 6 Ballistic Gun 19 | . 23 26 17 5 Launcher 2 | . 1 . 3 . Peak Build Rating 26 | 8 10 16 20 26 Average Rating 14 | 5 9 11 17 19 On Entrance 9 | . 8 10 16 15 Naked Turns . | . . . . . Heaviest Build 97 | 14 89 89 90 97 Greatest Support 64 | 40 40 44 64 60 Greatest Overweight (x) 27 | . 2 2 4 27 Average Overweight (x) 1 | . . 1 1 7 Largest Inventory Capacity 25 | 8 25 25 25 25 Average Capacity 23 | 7 19 25 25 25 Most Carried 25 | 6 17 25 25 21 Average Carried 19 | 2 11 21 23 16 Final Capacity 25 | 8 25 25 25 25 Final Carried 25 | 6 17 25 21 14 Class Distribution -------------------- 63% | Mutant 36% | Scavenger-Mutant Dominant Class ---------------- Mutant | -10/Materials Mutant | -10/Mines Scavenger-Mutant | -9/Materials Mutant | -9/Storage Resources | -11 -10 -10 -9 -9 ----------- Run | Yrd Mat Min Mat Sto Matter Collected 1507 | 297 173 372 552 113 Remotely . | . . . . . Salvage Created 2511 | 214 280 296 1398 323 Parts 171 | 22 21 20 95 13 Haulers Intercepted 2 | . 1 . 1 . Recyclers Shooed 5 | . 3 . 2 . Parts Field Recycled . | . . . . . Retrieved Matter . | . . . . . Parts Self-Destructed . | . . . . . Prevented . | . . . . . Kills | -11 -10 -10 -9 -9 ------- Run | Yrd Mat Min Mat Sto Combat Hostiles Destroyed 57 | . 8 10 33 6 Guns 43 | . 1 10 28 4 Cannons 2 | . . . . 2 AOE 12 | . 7 . 5 . Classes Destroyed 11 | 3 4 1 3 . Worker 4 | 2 . . 2 . Builder 2 | . . . 2 . Tunneler 7 | 7 . . . . Hauler 2 | . 1 . 1 . Recycler 6 | 1 1 . 3 1 Operator 2 | . 1 . 1 . Watcher 1 | . . . 1 . Swarmer 20 | . 5 3 12 . Grunt 27 | . 3 6 13 5 Sentry 9 | . . . 8 1 Assembled 1 | . . 1 . . Best Kill Streak 7 | 4 5 3 7 2 Combat Bots Only 7 | . 4 3 7 2 Max Kills in Single Turn 3 | 1 2 1 3 1 Gunslinging . | . . . . . Exploded 2 | . 2 . 2 . Melee . | . . . . . Uniques/NPCs Destroyed . | . . . . . Combat | -11 -10 -10 -9 -9 -------- Run | Yrd Mat Min Mat Sto Hostile Shots Fired 379 | . 30 56 218 75 Missed 119 | . 9 16 66 28 Damage Taken 3352 | . 287 404 1998 663 Core 569 | . 80 85 225 179 Absorbed by Shields . | . . . . . Core Remaining (%) 67 | 100 . 34 . . Volleys Fired 248 | 38 20 44 111 35 Largest 2 | 2 2 2 2 2 Hottest 143 | 70 50 120 53 143 Shots Fired 429 | 68 37 87 194 43 Gun 385 | 68 27 76 185 29 Cannon 14 | . . . . 14 Launcher 19 | . 10 . 9 . Special 11 | . . 11 . . Kinetic 333 | 38 27 76 185 7 Thermal 77 | 30 . 11 . 36 Explosive 19 | . 10 . 9 . Electromagnetic . | . . . . . Robot Hit Streak 11 | 8 5 10 11 9 Robot Miss Streak 7 | 4 3 5 7 2 Penetration Max . | . . . . . Secondary Targets 2 | . . 2 . . Max Gunslinging Chain 1 | . . 1 . . Shots Hit Robots 263 | 41 24 38 131 29 Core Hits 145 | 17 20 15 82 11 Critical Kills 1 | . . 1 . . Critical Parts Destroyed 2 | . . . 2 . Critical Strikes 5 | 1 . 1 2 1 Burn 2 | 1 . . . 1 Destroy 3 | . . 1 2 . Melee Attacks . | . . . . . Impact . | . . . . . Slashing . | . . . . . Piercing . | . . . . . Sneak Attacks . | . . . . . Combat Hostiles . | . . . . . Follow-up Attacks . | . . . . . Damage Inflicted 4216 | 427 796 424 2086 483 Guns 2629 | 427 165 400 1317 320 Cannons 163 | . . . . 163 Explosions 1400 | . 631 . 769 . Melee . | . . . . . Ramming . | . . . . . Kinetic 2166 | 226 165 400 1317 58 Thermal 650 | 201 . 24 . 425 Explosive 1309 | . 631 . 678 . Electromagnetic 91 | . . . 91 . Impact . | . . . . . Slashing . | . . . . . Piercing . | . . . . . Highest Corruption 4 | . 4 4 2 2 Average Corruption 2 | . 3 4 1 2 Corruption Purged . | . . . . . Corruption Blocked . | . . . . . Effects 82 | . 15 44 17 6 Message Errors 14 | . 1 11 2 . Matter Fused 20 | . 2 11 5 2 Heat Flow Errors 7 | . 3 3 1 . Energy Discharges 12 | . 3 5 3 1 Parts Rejected 1 | . . . 1 . Parts Fused 1 | . . 1 . . Data Loss (minor) 11 | . 1 7 3 . Data Loss (major) 8 | . 1 5 1 1 Misfires 3 | . 1 1 1 . Alerts 3 | . 2 . . 1 Weapon Failures 2 | . 1 . . 1 Overload Shots . | . . . . . Overflow Damage 59 | . 50 . 9 . Projectiles . | . . . . . Explosions 59 | . 50 . 9 . Melee . | . . . . . Knockbacks . | . . . . . Impact . | . . . . . Kinetic . | . . . . . Secondary . | . . . . . Self-Inflicted Damage 263 | . 93 . 170 . Shots 12 | . 6 . 6 . Rammed . | . . . . . Targets Rammed . | . . . . . Kicked . | . . . . . Crushed . | . . . . . Highest Temperature 246 | 130 246 243 193 163 Average Temperature 42 | 46 59 37 26 45 Received Heat Transfer 1196 | . 60 230 612 294 Siege Activations . | . . . . . Robots Corrupted . | . . . . . Combat Hostiles . | . . . . . Parts Fried . | . . . . . Impact Corruptions . | . . . . . Robots Melted . | . . . . . Combat Hostiles . | . . . . . Parts Melted 2 | 1 . . . 1 Heat Transferred 1715 | 666 . 50 . 999 Parts Sabotaged . | . . . . . Parts Stolen . | . . . . . Parts Stripped . | . . . . . Power Chain Reactions . | . . . . . Alert | -11 -10 -10 -9 -9 ------- Run | Yrd Mat Min Mat Sto Peak Influence 471 | 50 345 130 471 244 Initial 189 | . 32 14 . 189 Average 124 | 25 151 23 181 159 Maximum Alert Level 2 | . 1 . 2 1 Low Security (%) 78 | 100 82 100 60 82 Level 1 17 | . 17 . 30 17 Level 2 3 | . . . 8 . Level 3 . | . . . . . Level 4 . | . . . . . Level 5 . | . . . . . High Security . | . . . . . Max Security . | . . . . . Squads Dispatched 10 | . 4 1 5 . Investigation 5 | . 1 1 3 . Extermination . | . . . . . Reinforcement 5 | . 3 . 2 . Assault . | . . . . . Garrison . | . . . . . Intercept . | . . . . . Searches Triggered . | . . . . . Construction Impeded . | . . . . . Haulers Reinforced . | . . . . . Active Scanning Responses . | . . . . . Cargo Convoy Interrupts . | . . . . . Stealth | -11 -10 -10 -9 -9 --------- Run | Yrd Mat Min Mat Sto Distress Signals 9 | . 4 1 4 . Communications Jammed . | . . . . . Distress Signals . | . . . . . Times Spotted 105 | . 24 10 62 9 Peak Tracking Total 8 | . 6 3 8 2 Tactical Retreats 2 | . 1 . 1 . Traps | -11 -10 -10 -9 -9 ------- Run | Yrd Mat Min Mat Sto Traps Triggered 6 | . 3 . 1 2 Indirectly . | . . . . . Trap Hack Attempts . | . . . . . Triggered . | . . . . . Disarmed . | . . . . . Reprogrammed . | . . . . . Reused . | . . . . . Traps Extracted . | . . . . . Installed . | . . . . . Triggered . | . . . . . Machines | -11 -10 -10 -9 -9 ---------- Run | Yrd Mat Min Mat Sto Machines Disabled 3 | . 2 . 1 . Max in Single Turn 1 | . 1 . 1 . Machines Repaired . | . . . . . Machines Dismantled . | . . . . . Machines Sabotaged . | . . . . . Overloaded Fab Kills . | . . . . . Hacking | -11 -10 -10 -9 -9 --------- Run | Yrd Mat Min Mat Sto Machines Accessed 9 | . 1 1 7 . Terminals 6 | . 1 . 5 . Fabricators . | . . . . . Repair Stations . | . . . . . Recycling Units . | . . . . . Scanalyzers 2 | . . . 2 . Garrison Access . | . . . . . Total Hacks 26 | . 2 1 23 . Successful 11 | . 1 1 9 . Failed 15 | . 1 . 14 . Catastrophic 2 | . . . 2 . Database Lockouts . | . . . . . Manual 10 | . . . 10 . Terminals 17 | . 2 . 15 . Fabricators . | . . . . . Repair Stations . | . . . . . Recycling Units . | . . . . . Scanalyzers 8 | . . . 8 . Garrison Access . | . . . . . Terminal Hacks 6 | . 1 1 4 . Open Door 1 | . . 1 . . Level Access Points 1 | . . . 1 . Branch Access Points 1 | . . . 1 . Emergency Access Points 1 | . . . 1 . Recall Reinforcements 1 | . 1 . . . Zone Layout 1 | . . . 1 . Fabricator Hacks . | . . . . . Repair Station Hacks . | . . . . . Recycling Unit Hacks . | . . . . . Scanalyzer 5 | . . . 5 . Insert Component 3 | . . . 3 . Analyze 2 | . . . 2 . Garrison Access Hacks . | . . . . . Unauthorized Hacks . | . . . . . Terminals . | . . . . . Fabricators . | . . . . . Repair Stations . | . . . . . Recycling Units . | . . . . . Scanalyzers . | . . . . . Garrison Access . | . . . . . Data Cores Recovered . | . . . . . Used . | . . . . . Hacking Detections 7 | . . . 7 . Full Trace Events 3 | . . . 3 . Feedback Events 1 | . . . 1 . Corruption 1 | . . . 1 . Feedback Blocked . | . . . . . Robot Schematics Acquired . | . . . . . Robots Built . | . . . . . Authchips . | . . . . . Time . | . . . . . Total Robot Build Rating . | . . . . . Part Schematics Acquired 2 | . . . 2 . Parts Built . | . . . . . Authchips . | . . . . . Time . | . . . . . Total Part Build Rating . | . . . . . Parts Repaired . | . . . . . Time . | . . . . . Parts Recycled . | . . . . . Recycled Matter . | . . . . . Retrieved Matter . | . . . . . Retrieved Components . | . . . . . Parts Scanalyzed 3 | . . . 3 . Part Schematics Acquired 2 | . . . 2 . Parts Damaged 1 | . . . 1 . Bothacking | -11 -10 -10 -9 -9 ------------ Run | Yrd Mat Min Mat Sto Used RIF Installer . | . . . . . Robots Hacked . | . . . . . Non-combat . | . . . . . Combat . | . . . . . Robot Hacks Applied . | . . . . . Relay Couplers Released . | . . . . . Fabnet Peak Effective % . | . . . . . Robots Rewired . | . . . . . Allies Hacked . | . . . . . Hacks Repelled . | . . . . . Allies | -11 -10 -10 -9 -9 -------- Run | Yrd Mat Min Mat Sto Total Allies 2 | . . 2 . . Largest Group 2 | . . 2 . . Highest-Rated Group 47 | . . 47 . . Highest-Rated Ally 31 | . . 31 . . Total Orders . | . . . . . Ally Attacks 5 | . . 5 . . Total Damage 82 | . . 82 . . Kills . | . . . . . Allies Corrupted 1 | . . 1 . . Allies Melted . | . . . . . Intel | -11 -10 -10 -9 -9 ------- Run | Yrd Mat Min Mat Sto Robot Analysis Total . | . . . . . Derelict Logs Recovered 1 | . . 1 . . Drone Launches . | . . . . . Drone Recoveries . | . . . . . Exploration | -11 -10 -10 -9 -9 ------------- Run | Yrd Mat Min Mat Sto Turns Passed 5874 | 239 865 1633 2476 661 Spaces Moved 1868 | 78 329 467 887 107 Core 10 | 1 . . . 9 Treads 1778 | 77 329 467 887 18 Legs . | . . . . . Wheels . | . . . . . Hover . | . . . . . Flight 80 | . . . . 80 Fastest Speed 50 | 50 160 225 225 240 Average Speed 269 | 158 239 312 237 515 Slowest Speed 1400 | 160 320 320 480 1400 Overloaded Moves . | . . . . . Propulsion Burnouts . | . . . . . Robots Hopped . | . . . . . Cave-ins Triggered . | . . . . . Exploration Rate (%) 51 | 4 60 95 73 24 Regions Visited 4 Branch Regions 2 Pre-discovered Areas 1 | . . 1 . . Known Exits Taken 1 | . . . 1 . Unknown Exits Taken 3 | 1 1 1 . . Scrap Searched 1 | . . 1 . . Spaces Dug . | . . . . . Terrain Destroyed 91 | . 45 . 46 . Melee . | . . . . . Projectile . | . . . . . AOE 91 | . 45 . 46 . Terrain Rammed . | . . . . . Walls Destroyed . | . . . . . Machines Disabled . | . . . . . Actions | -11 -10 -10 -9 -9 --------- Run | Yrd Mat Min Mat Sto Total 2310 | 130 372 542 1094 172 Wait 61 | 2 9 5 31 14 Move 1864 | 77 328 466 886 107 Hop . | . . . . . Pick Up 60 | 6 10 14 27 3 Fast Attach 12 | 7 . . 4 1 Attach 32 | . 1 2 19 10 Detach 2 | . . 1 . 1 Swap 14 | . 4 6 3 1 Drop 17 | . . 4 13 . Fire 248 | 38 20 44 111 35 Melee . | . . . . . Ram . | . . . . . Kick . | . . . . . Crush . | . . . . . Escape Stasis . | . . . . . Rewire . | . . . . . Trap . | . . . . . Miscellaneous . | . . . . . Route ------- -11/Scrapyard -10/Materials (discovered 3 exits: *Mat / *Min x2) -10/Mines (discovered 4 exits: *Mat x2 / [*Exi] / [*Sub]) -9/Materials (discovered 6 exits: *Mat x3 / *Min x2 / *Sto) -9/Storage History --------- Turn | Location | Event 10 | -11/Scrapyard | Discovered new exit (range 15) 240 | -11/Scrapyard | Entered Materials 336 | -10/Materials | Build established: Mutant 398 | -10/Materials | Discovered new exit (range 8) 541 | -10/Materials | Discovered new exit (range 6) 701 | -10/Materials | Discovered new exit (range 14) 1105 | -10/Materials | Entered Mines 1105 | -10/Mines | Discovered new exit (range 11) 1157 | -10/Mines | Learned location of 1 exit from Materials 1250 | -10/Mines | Found a damaged Exp. Sensor Array with a note attached 1257 | -10/Mines | Found Prototype Device 1467 | -10/Mines | Excavation squad dispatched 1467 | -10/Mines | A large section of the Mines collapsed 1759 | -10/Mines | Learned location of Storage (-9) 1892 | -10/Mines | Core integrity fell below 50% 2182 | -10/Mines | Discovered new exit (range 6) 2207 | -10/Mines | Deemed a non-threat by the Exiles lab entrance 2210 | -10/Mines | Discovered new exit (range 5) 2626 | -10/Mines | Met a Derelict shopkeep closing up shop 2684 | -10/Mines | Discovered new exit (range 11) 2738 | -10/Mines | Entered Materials 2738 | -9/Materials | Evolved 2 slots: Propulsion x1, Utility x1 2739 | -9/Materials | Identified exit to Storage 3401 | -9/Materials | Discovered new exit (range 15) 3602 | -9/Materials | Discovered new exit (range 9) 3830 | -9/Materials | Build established: Scavenger-Mutant 4037 | -9/Materials | Discovered new exit (range 16) 4155 | -9/Materials | Lost 7 parts (1p3n1u2w) 4164 | -9/Materials | Destroyed 7 combat bots 4367 | -9/Materials | Identified Exp. Sensor Array 4697 | -9/Materials | Identified exit to Materials 4973 | -9/Materials | Identified exit to Mines 5079 | -9/Materials | Core integrity fell below 50% 5214 | -9/Materials | Entered Storage 5836 | -9/Storage | Build established: Mutant 5850 | -9/Storage | Core integrity fell below 20% 5875 | -9/Storage | Destroyed by Y-45 Defender with Beam Rifle Last Messages --------------- 05674_ K-01 Serf collects debris. 05676_ System corrupted: Particle Cannon failed to cycle. 05677_ K-01 Serf collects debris. 05680_ G-34 Mercenary destroyed. 05682_ K-01 Serf collects debris. 05691_ Acquired 57 matter. 05700_ Acquired Imp. Heat Sink. 05731_ System corrupted: Substantial component data lost. 05829_ Lgt. Nuclear Core destroyed. 05852_ G-34 Mercenary heat spikes uncontrollably. 05853_ G-34 Mercenary overheating. 05856_ G-34 Mercenary heat short circuits Aluminum Leg. 05856_ G-34 Mercenary overheating. 05857_ System corrupted: Energy discharge (-2). 05857_ G-34 Mercenary heat damages Broken Aluminum Leg. 05857_ G-34 Mercenary overheating. 05860_ Particle Cannon destroyed. 05861_ Ion Engine melted. 05861_ G-34 Mercenary destroyed. 05874_ Y-45 Defender suffers critical hit (Burn). Map ----- +----------------------------------------------------+ | | | | | | | | | | | | | | | | | | | | | | | | | | | ?????????????????????????????????????????????????? | | ?????????????????????????????????????????????????? | | ????????????????????????????????????#######??????? | | ?????????????????????????????????#### ##?????? | | ?????????????????????????????????# ! ##????? | | ???????????????????????#?#####???# #????? | | ??????????????????????? # ??# ! #????? | | ??????????????????????# # """ ?# =% ###### | | ??????????????????????# # """ !# * | | ??????????????????????# # """ #!% # | | ??????????????###+????# # """ #! #! | | ????????????### #### # """ # #%= | | ????????? #@ # #* | | ????????? Y% # ##+#### | | ??????????????# #### # # # + | | ??????????????????????# ############# ### | | ??????????????????????# #?# + #?# | | ??????????????????????# #?# # #?# | | ??????????????????????# #?# + #?# | | ???????????????######?# #?# # %#?######## | | ???????????????# # #?# # % #????????? | | ???????????????# """ # ### # #????????? | | ???????????????# """ + + # #????????? | | ???????????????# """ ##### # #????????? | | ???????????????# ????########### #????????? | | ???????????????# ???????????????# #????????? | | ???????????????######???????????????# #????????? | | ????????????????????????????????????# #????????? | | ????????????????????????????????????# #????????? | | ????????????????????????????????????# #????????? | | ????????????????????????????????????+ #????????? | | ????????????????????????????????????# ?????????? | | ????????????????????????????????????? ?????????? | | ?????????????????????????????????????????????????? | | ?????????????????????????????????????????????????? | | ?????????????????????????????????????????????????? | | ?????????????????????????????????????????????????? | +----------------------------------------------------+ Best States ------------- Heat Dissipation 42 Energy Generation 14 Energy Capacity 250 Matter Stores 300 Matter Capacity 300 Sight Range 16 Robot Scan Range 14 Terrain Scan Range 16 Terrain Scan Density 10 ECM Strength 1 Armor Coverage 150 Evasion (%) 40 Recoil Reduction 3 Offensive Hacking 10 Item Schematics ----------------- Imp. Flight Unit | -9/Materials | Scanalyzed Hacking Suite | -9/Materials | Scanalyzed Robot Schematics ------------------ None Fabricated ------------ Nothing Alien Tech Used ----------------- None Achievements -------------- GoHome() Hey, That's Mine! Maybe Next Time I'll Detach My Launcher Safety First Challenges ------------ None Game ------ Seed IntegratedGhostDisintegrator Manual? 0 Play Time 00:53:24 Cumulative 4.9 hours Start 2024.10.31 @ 13:08:36 End 2024.10.31 @ 13:59:53 Sessions 1 Manual Loads 0 Difficulty Rogue Special Mode None Game No. 8 Rogue 8 Adventurer 0 Explorer 0 Win Type - Total 0 Types 0/0/0/0/0/0/0/0/0 Lore% 1 Gallery% 5 Achievement% 8 Wizard Run 0 Options --------- Layout 0 ASCII 0 Keyboard 1 Movement Numpad Keybinds 0 Fullscreen 2 Font 18/SmallcapsGlow Map View 76x50 Zoom Use 0% Tactical HUD 1 Map Filters NONE Filters NONE Steam 1 RUN: 704b8aef-ffb8-464a-90fc-16df77bc6f73